Cogmind - Beta 13 @@@ ROGUE MODE // 2024.04.09 @ 08:17:10 Player: dohmmass Result: Destroyed by G-47 Trooper with Particle Gun Performance ------------- Evolutions (1) 500 Regions Visited (3) 600 Robots Destroyed (33) 165 Value Destroyed (1089) 1089 Prototype IDs (3) 60 Alien Tech Used (0) 0 Bonus (33) 33 TOTAL SCORE: 2447 Bonus ------- High Alert Combat Kills 33 Cogmind --------- Core Integrity 0/400 Matter 176/300 Energy 75/100 System Corruption 0% Temperature Cool (9) Movement Core (200) Ox3 Location -9/Storage Parts ------- > --- POWER (1) -------- (None) > --- PROPULSION (4) --- (None) > --- UTILITY (2) ------ Cooling System Transport Network Coupler > --- WEAPON (2) ------- Improved Light Cannon Improved Light Cannon > --- INVENTORY (5) ---- (None) Peak State ------------ > --- POWER ------------ Cooled Ion Engine > --- PROPULSION ------- (None) > --- UTILITY ---------- Cooling System Transport Network Coupler > --- WEAPON ----------- Advanced Beam Cannon Advanced Beam Cannon > --- INVENTORY -------- Light Assault Rifle Light Assault Rifle Mining Laser [Rating: 12] Favorites ----------- Power Cooled Ion Engine Engine Cooled Ion Engine Power Core Light Nuclear Core Propulsion Compact Wheel Wheel Compact Wheel Utility Transport Network Coupler Device Structural Scanner Processor Transport Network Coupler Weapon Advanced Beam Cannon Energy Gun Improved EM Shotgun Energy Cannon Advanced Beam Cannon Ballistic Gun Light Assault Rifle Ballistic Cannon Light Cannon Special Weapon Mining Laser Build | -11 -10 -9 -9 ------- Run | Yrd Mat Mat Sto Slots Evolved 2 | . . 2 . Power . | . . . . Propulsion 2 | . . 2 . Utility . | . . . . Weapon . | . . . . Parts Attached 26 | 6 4 1 15 Power 6 | 2 1 . 3 Engine 5 | 2 1 . 2 Core 1 | . . . 1 Reactor . | . . . . Propulsion 2 | 2 . . . Treads . | . . . . Leg . | . . . . Wheel 2 | 2 . . . Hover . | . . . . Flight . | . . . . Utility 3 | . 1 1 1 Device 2 | . 1 . 1 Storage . | . . . . Processor 1 | . . 1 . Hackware . | . . . . Protection . | . . . . Artifact . | . . . . Weapon 15 | 2 2 . 11 Energy Gun 1 | . . . 1 Energy Cannon 3 | . . . 3 Ballistic Gun 3 | 2 1 . . Ballistic Cannon 6 | . 1 . 5 Launcher . | . . . . Special Weapon 2 | . . . 2 Impact Weapon . | . . . . Slashing Weapon . | . . . . Piercing Weapon . | . . . . Special Melee Weapon . | . . . . Unidentified Prototypes 3 | . . . 3 Parts Lost 11 | . 1 . 10 Power 4 | . 1 . 3 Propulsion 2 | . . . 2 Utility 1 | . . . 1 Weapon 4 | . . . 4 Highest Loss Streak 4 | . 1 . 4 To Critical Strikes . | . . . . Average Slot Usage (%) 57 | . 81 77 53 Engine 8 | . 11 11 8 Core 1 | . . . 1 Wheel 7 | . 28 22 4 Device 9 | . 13 11 8 Processor 9 | . . 11 11 Energy Cannon 10 | . . . 12 Ballistic Gun 4 | . 17 11 2 Ballistic Cannon 5 | . 11 11 4 Naked Turns . | . . . . Heaviest Build 18 | 5 10 10 18 Greatest Support 26 | 26 26 26 26 Greatest Overweight (x) 5 | . . . 5 Average Overweight (x) 1 | . . . 2 Largest Inventory Capacity 5 | 5 5 5 5 Average Capacity 5 | 5 5 5 5 Most Carried 5 | 3 2 1 5 Average Carried 2 | . . 1 3 Final Capacity 5 | 5 5 5 5 Final Carried 2 | . 2 1 . Class Distribution -------------------- 100% | Mutant Dominant Class ---------------- Mutant | -10/Materials Mutant | -9/Materials Mutant | -9/Storage Resources | -11 -10 -9 -9 ----------- Run | Yrd Mat Mat Sto Matter Collected 630 | 228 151 . 251 Remotely . | . . . . Salvage Created 1312 | . 158 . 1154 Parts 69 | . 10 . 59 Haulers Intercepted 4 | . 1 . 3 Recyclers Shooed 1 | . . . 1 Parts Field Recycled . | . . . . Retrieved Matter . | . . . . Parts Self-Destructed . | . . . . Prevented . | . . . . Kills | -11 -10 -9 -9 ------- Run | Yrd Mat Mat Sto Combat Hostiles Destroyed 28 | . 6 . 22 Guns 2 | . 1 . 1 Cannons 25 | . 5 . 20 Classes Destroyed 7 | . 3 . 4 Hauler 4 | . 1 . 3 Recycler 1 | . . . 1 Swarmer 3 | . 3 . . Grunt 14 | . 3 . 11 Brawler 1 | . . . 1 Duelist 2 | . . . 2 Sentry 8 | . . . 8 Best Kill Streak 7 | . 7 . 5 Combat Bots Only 6 | . 6 . 5 Max Kills in Single Turn 2 | . 1 . 2 Gunslinging . | . . . . Exploded . | . . . . Melee . | . . . . Uniques/NPCs Destroyed . | . . . . Combat | -11 -10 -9 -9 -------- Run | Yrd Mat Mat Sto Hostile Shots Fired 168 | . 38 . 130 Missed 40 | . 1 . 39 Damage Taken 1795 | . 329 . 1466 Core 530 | . 120 . 410 Absorbed by Shields . | . . . . Core Remaining (%) 76 | 100 52 . . Volleys Fired 112 | . 20 . 92 Largest 2 | . 2 . 2 Hottest 136 | . 55 . 136 Shots Fired 188 | . 40 . 148 Gun 31 | . 20 . 11 Cannon 153 | . 20 . 133 Launcher . | . . . . Special 4 | . . . 4 Kinetic 94 | . 40 . 54 Thermal 94 | . . . 94 Explosive . | . . . . Electromagnetic . | . . . . Robot Hit Streak 19 | . 4 . 19 Robot Miss Streak 6 | . 6 . 4 Penetration Max . | . . . . Secondary Targets . | . . . . Shots Hit Robots 120 | . 21 . 99 Core Hits 44 | . 12 . 32 Critical Kills 1 | . . . 1 Critical Parts Destroyed . | . . . . Critical Strikes 1 | . . . 1 Meltdown 1 | . . . 1 Melee Attacks . | . . . . Impact . | . . . . Slashing . | . . . . Piercing . | . . . . Sneak Attacks . | . . . . Combat Hostiles . | . . . . Follow-up Attacks . | . . . . Damage Inflicted 2226 | . 246 . 1980 Guns 147 | . 78 . 69 Cannons 2076 | . 168 . 1908 Explosions . | . . . . Melee . | . . . . Ramming 3 | . . . 3 Kinetic 956 | . 246 . 710 Thermal 1267 | . . . 1267 Explosive . | . . . . Electromagnetic . | . . . . Impact . | . . . . Slashing . | . . . . Piercing . | . . . . Highest Corruption . | . . . . Average Corruption . | . . . . Corruption Purged . | . . . . Corruption Blocked . | . . . . Overload Shots . | . . . . Overflow Damage 5 | . . . 5 Projectiles 5 | . . . 5 Explosions . | . . . . Melee . | . . . . Knockbacks 8 | . 1 . 7 Impact . | . . . . Kinetic 7 | . 1 . 6 Secondary 1 | . . . 1 Self-Inflicted Damage 64 | . . . 64 Shots 1 | . . . 1 Rammed 1 | . . . 1 Targets Rammed 1 | . . . 1 Kicked . | . . . . Crushed . | . . . . Highest Temperature 492 | . 28 . 492 Average Temperature 103 | . 11 . 120 Received Heat Transfer 648 | . 60 . 588 Effects 4 | . . . 4 Shutdowns 1 | . . . 1 Interference 2 | . . . 2 Matter Decay 1 | . . . 1 Siege Activations . | . . . . Robots Corrupted . | . . . . Combat Hostiles . | . . . . Parts Fried . | . . . . Impact Corruptions . | . . . . Robots Melted 1 | . . . 1 Combat Hostiles 1 | . . . 1 Parts Melted 3 | . . . 3 Heat Transferred 2294 | . . . 2294 Parts Sabotaged . | . . . . Parts Stolen . | . . . . Parts Stripped . | . . . . Power Chain Reactions . | . . . . Alert | -11 -10 -9 -9 ------- Run | Yrd Mat Mat Sto Peak Influence 454 | . 163 83 454 Initial 68 | . . 68 34 Average 243 | . 48 68 286 Maximum Alert Level 2 | . . . 2 Low Security (%) 36 | 100 100 100 22 Level 1 55 | . . . 67 Level 2 8 | . . . 9 Level 3 . | . . . . Level 4 . | . . . . Level 5 . | . . . . High Security . | . . . . Max Security . | . . . . Squads Dispatched 7 | . 2 . 5 Investigation 1 | . 1 . . Extermination . | . . . . Reinforcement 2 | . 1 . 1 Assault 2 | . . . 2 Garrison 2 | . . . 2 Intercept . | . . . . Searches Triggered . | . . . . Construction Impeded 1 | . . . 1 Haulers Reinforced . | . . . . Active Scanning Responses . | . . . . Cargo Convoy Interrupts . | . . . . Stealth | -11 -10 -9 -9 --------- Run | Yrd Mat Mat Sto Distress Signals 3 | . . 1 2 Communications Jammed . | . . . . Distress Signals . | . . . . Times Spotted 40 | . 9 1 30 Peak Tracking Total 8 | . 6 2 8 Tactical Retreats 4 | . 1 . 3 Traps | -11 -10 -9 -9 ------- Run | Yrd Mat Mat Sto Traps Triggered 4 | . 1 . 3 Indirectly . | . . . . Trap Hack Attempts . | . . . . Triggered . | . . . . Disarmed . | . . . . Reprogrammed . | . . . . Reused . | . . . . Traps Extracted . | . . . . Installed . | . . . . Triggered . | . . . . Machines | -11 -10 -9 -9 ---------- Run | Yrd Mat Mat Sto Machines Disabled 4 | . . . 4 Max in Single Turn 2 | . . . 2 Garrison Access 1 | . . . 1 Machines Repaired . | . . . . Machines Dismantled . | . . . . Machines Sabotaged . | . . . . Overloaded Fab Kills . | . . . . Hacking | -11 -10 -9 -9 --------- Run | Yrd Mat Mat Sto Machines Accessed 1 | . . . 1 Terminals . | . . . . Fabricators . | . . . . Repair Stations . | . . . . Recycling Units . | . . . . Scanalyzers . | . . . . Garrison Access 1 | . . . 1 Total Hacks 2 | . . . 2 Successful 1 | . . . 1 Failed 1 | . . . 1 Catastrophic . | . . . . Database Lockouts . | . . . . Manual . | . . . . Terminals . | . . . . Fabricators . | . . . . Repair Stations . | . . . . Recycling Units . | . . . . Scanalyzers . | . . . . Garrison Access 2 | . . . 2 Terminal Hacks . | . . . . Fabricator Hacks . | . . . . Repair Station Hacks . | . . . . Recycling Unit Hacks . | . . . . Scanalyzer . | . . . . Garrison Access Hacks 1 | . . . 1 Seal Access 1 | . . . 1 Unauthorized Hacks . | . . . . Terminals . | . . . . Fabricators . | . . . . Repair Stations . | . . . . Recycling Units . | . . . . Scanalyzers . | . . . . Garrison Access . | . . . . Data Cores Recovered . | . . . . Used . | . . . . Hacking Detections . | . . . . Full Trace Events . | . . . . Feedback Events . | . . . . Feedback Blocked . | . . . . Robot Schematics Acquired . | . . . . Robots Built . | . . . . Authchips . | . . . . Time . | . . . . Total Robot Build Rating . | . . . . Part Schematics Acquired . | . . . . Parts Built . | . . . . Authchips . | . . . . Time . | . . . . Total Part Build Rating . | . . . . Parts Repaired . | . . . . Time . | . . . . Parts Recycled . | . . . . Recycled Matter . | . . . . Retrieved Matter . | . . . . Retrieved Components . | . . . . Parts Scanalyzed . | . . . . Part Schematics Acquired . | . . . . Parts Damaged . | . . . . Bothacking | -11 -10 -9 -9 ------------ Run | Yrd Mat Mat Sto Used RIF Installer . | . . . . Robots Hacked . | . . . . Non-combat . | . . . . Combat . | . . . . Robot Hacks Applied . | . . . . Relay Couplers Released . | . . . . Fabnet Peak Effective % . | . . . . Robots Rewired . | . . . . Allies Hacked . | . . . . Hacks Repelled . | . . . . Allies | -11 -10 -9 -9 -------- Run | Yrd Mat Mat Sto Total Allies 2 | . . . 2 Largest Group 2 | . . . 2 Highest-Rated Group 62 | . . . 62 Highest-Rated Ally 31 | . . . 31 Total Orders . | . . . . Ally Attacks 6 | . . . 6 Total Damage 61 | . . . 61 Kills . | . . . . Allies Corrupted . | . . . . Allies Melted . | . . . . Intel | -11 -10 -9 -9 ------- Run | Yrd Mat Mat Sto Robot Analysis Total . | . . . . Derelict Logs Recovered . | . . . . Drone Launches . | . . . . Drone Recoveries . | . . . . Exploration | -11 -10 -9 -9 ------------- Run | Yrd Mat Mat Sto Turns Passed 1157 | 40 143 19 955 Spaces Moved 486 | 32 85 20 349 Core 203 | 3 . . 200 Treads . | . . . . Legs . | . . . . Wheels 283 | 29 85 20 149 Hover . | . . . . Flight . | . . . . Fastest Speed 50 | 50 90 90 50 Average Speed 157 | 86 90 90 184 Slowest Speed 300 | 90 90 90 300 Overloaded Moves . | . . . . Propulsion Burnouts . | . . . . Robots Hopped . | . . . . Cave-ins Triggered . | . . . . Exploration Rate (%) 20 | 3 22 4 51 Regions Visited 3 Branch Regions 1 Pre-discovered Areas . | . . . . Known Exits Taken . | . . . . Unknown Exits Taken 3 | 1 1 1 . Scrap Searched . | . . . . Spaces Dug 1 | . . . 1 Terrain Destroyed 13 | . . . 13 Melee . | . . . . Projectile 2 | . . . 2 AOE 11 | . . . 11 Terrain Rammed . | . . . . Walls Destroyed . | . . . . Machines Disabled . | . . . . Actions | -11 -10 -9 -9 --------- Run | Yrd Mat Mat Sto Total 686 | 44 114 20 508 Wait 26 | . 2 . 24 Move 483 | 31 84 19 349 Hop . | . . . . Pick Up 25 | 6 4 . 15 Fast Attach . | . . . . Attach 19 | 5 2 1 11 Detach . | . . . . Swap 7 | 1 2 . 4 Drop 8 | 1 . . 7 Fire 112 | . 20 . 92 Melee . | . . . . Ram 1 | . . . 1 Kick . | . . . . Crush . | . . . . Escape Stasis 5 | . . . 5 Rewire . | . . . . Trap . | . . . . Miscellaneous . | . . . . Route ------- -11/Scrapyard -10/Materials -9/Materials -9/Storage History --------- Turn | Location | Event 26 | -11/Scrapyard | Discovered new exit (range 15) 41 | -11/Scrapyard | Entered Materials 98 | -10/Materials | Discovered new exit (range 16) 184 | -10/Materials | Entered another Materials area 184 | -9/Materials | Evolved 2 slots: Propulsion x2 192 | -9/Materials | Discovered new exit (range 12) 203 | -9/Materials | Entered Storage 300 | -9/Storage | Build established: Mutant 457 | -9/Storage | Lost 4 parts (1p2n1w) 562 | -9/Storage | Garrison activated, responded to threat 672 | -9/Storage | Garrison activated, responded to threat 694 | -9/Storage | Core integrity fell below 50% 1048 | -9/Storage | Met a pair of Derelict thieves 1114 | -9/Storage | Core integrity fell below 20% 1158 | -9/Storage | Destroyed by G-47 Trooper with Particle Gun Last Messages --------------- 01124_ C-30 ARC bursts open, deploying its payload. 01124_ G-47 Trooper unfolds itself. 01124_ G-34 Mercenary unfolds itself. 01124_ I-25 Savior unfolds itself. 01124_ K-01 Serf collects debris. 01124_ Acquired 25 matter. 01125_ K-01 Serf collects debris. 01132_ G-47 Trooper destroyed. 01135_ K-01 Serf collects debris. 01136_ Critical hit (Burn: +37). 01138_ G-47 Trooper knocked back. 01141_ G-34 Mercenary knocked back. 01143_ K-01 Serf collects debris. 01147_ G-34 Mercenary destroyed. 01148_ Acquired 11 matter. 01153_ Destroyed Com. Battery. 01153_ I-25 Savior knocked back. 01156_ Imp. Light Cannon destroyed. 01157_ K-01 Serf collects debris. Map ----- +----------------------------------------------------+ | ?????????????????????????????????????????????????? | | ?????????????????????????????????????????????????? | | ?????????????????????????????????????????????????? | | ?????????????????????????????????????????????????? | | ?????????????????????????????????????????????????? | | ?????????????????????????????????????????????????? | | ?????????????????????????????????????????????????? | | ?????????????????????????????????????????????????? | | ?????????????????????????????????????????????????? | | ?????????????????????????????????????????????????? | | ?????????????????????????????????????????????????? | | ?????????????????????????????????????????????????? | | ?????????????????????????????????????????????????? | | ?????????????????????????????????????????????????? | | ?????????????????????????????????????????????????? | | ????????????????????????????????????????####?????? | | ????????????????????????????????????????########## | | ????????????????????????????????????????## ####### | | ??????????????????????########??????????## | | ??????????????????????#[ [ #??????????## ! | | ??????????????????????#[[ #??????????## | | ??????????????????????# [ #??????????## | | ??????????????????????# #??????????## "" | | ??????????????????????##" "###??????????## " | | ??????????????????????# % T#???????????## " | | ??????????????????????# @*##??########### | | ?????????????????????#####g###################+### | | ???????????????????### % =!u%% | | ????????????????#T + * %%!=k | | ????????????????## #=%[ []!! "%" | | ?????????????????????#%##########/###### #####+### | | ?????????????????????# ??????? #### # | | ?????????????????????#?????????? ? ## # """" | | ??????????????????????????????? ?? # # %"* "" | | ??????????????????????????????? ?? # # "" | | ?????????????????????????????? ?## # " |[" | | ?????????????????????????????? ?## #% ""[ " | | ????????????????????????????? ## +% "" | | ?????????????????????????????########### # % | | ??????????????????????????????????????## #####+### | | ??????????????????????????????????????"# #####%### | | ??????????????????????????????????????"# ##### ##? | | ??????????????????????????????????????"#%#####%##? | | ??????????????????????????????????????##%%%* %##? | | ???????????????????????????????????? ### ##### ### | | ???????????????????????????????????? ### #####+### | | ???????????????????????????????????? + #| ## | | ???????????????????????###### # # ## | | ?????????a?????????????##########+#### # ## | | ?????????????????a??? ! + [## | +----------------------------------------------------+ Best States ------------- Heat Dissipation 50 Energy Generation 14 Energy Capacity 280 Matter Stores 300 Matter Capacity 300 Sight Range 16 Terrain Scan Density 10 Evasion (%) 42 Item Schematics ----------------- None Robot Schematics ------------------ None Fabricated ------------ Nothing Alien Tech Used ----------------- None Achievements -------------- None Challenges ------------ None Game ------ Seed TransdimensionalNodeShredder Manual? 0 Play Time 00:10:38 Cumulative 29.2 hours Start 2024.04.09 @ 08:06:31 End 2024.04.09 @ 08:17:10 Sessions 1 Manual Loads 0 Difficulty Rogue Special Mode None Game No. 61 Rogue 61 Adventurer 0 Explorer 0 Win Type - Total 0 Types 0/0/0/0/0/0/0/0/0 Lore% 17 Gallery% 33 Achievement% 22 Wizard Run 0 Options --------- Layout 1 ASCII 0 Keyboard 0 Movement Mouse Keybinds 0 Fullscreen 1 Font 24/Smallcaps Map View 50x35 Zoom Use 0% Tactical HUD 1 Map Filters NONE Filters NONE Steam 1 RUN: 1a6f4bf3-4db4-46fb-ad15-d7260946dd20